[Event "Oleksandr Stadnyk Memorial 2020"]
[Site "Chortkiv"]
[Date "2020.12.08"]
[Round "3.2"]
[White "Yaniuk, Volodymyr"]
[Black "Vakulenko, Oleksandr"]
[Result "1-0"]
[ECO "D30"]
[WhiteElo "2233"]
[BlackElo "2245"]
[Annotator "NA"]
[PlyCount "123"]
[EventDate "2020.12.07"]
[EventType "tourn"]
[EventCountry "UKR"]
[SourceTitle "playchess.com"]
[Source "ChessBase"]
[SourceQuality "1"]
[TimeControl "5400+30"]

1. d4 {[%emt 0:00:00]} d5 {[%emt 0:00:00]} 2. c4 {[%emt 0:00:00]} e6 {[%emt 0:00:00]} 3. Nf3 {[%emt 0:00:00]} Nf6 {[%emt 0:00:25]} 4. g3 {[%emt 0:00:00]} Bb4+ {[%emt 0:00:18]} 5. Bd2 {[%emt 0:00:02]} Be7 {[%emt 0:00:21]} 6. Bg2 {[%emt 0:00:37]} O-O {[%emt 0:00:25]} 7. O-O {[%emt 0:00:26]} Nbd7 {[%emt 0:00:28]} 8. Qc2 {[%emt 0:00:46]} Ne4 {[%emt 0:00:25]} 9. Bf4 {[%emt 0:01:27]} c6 {[%emt 0:00:27]} 10. Nfd2 {[%emt 0:01:04]} g5 {[%emt 0:01:01]} 11. Nxe4 {[%emt 0:08:25]} gxf4 {[%emt 0:00:51]} 12. Ned2 {[%emt 0:00:27]} Bd6 {[%emt 0:00:34]} 13. Nc3 {[%emt 0:01:41]} f5 {[%emt 0:22:38]} 14. gxf4 {[%emt 0:04:59]} Bxf4 {[%emt 0:00:58]} 15. e3 {[%emt 0:00:04]} Bd6 {[%emt 0:01:55]} 16. f4 {[%emt 0:00:35]} Nf6 {[%emt 0:01:10]} 17. c5 {[%emt 0:01:41]} Bc7 {[%emt 0:05:12]} 18. Nf3 {[%emt 0:03:24]} Kh8 {[%emt 0:04:11]} 19. Ne5 {[%emt 0:00:52]} Bd7 {[%emt 0:06:35]} 20. Bf3 {[%emt 0:04:58]} Be8 {[%emt 0:16:17]} 21. Qf2 {[%emt 0:15:02]} Bh5 {[%emt 0:04:40]} 22. Bxh5 {[%emt 0:04:05]} Nxh5 {[%emt 0:00:19]} 23. Nf3 {[%emt 0:01:13]} h6 {[%emt 0:06:15]} 24. Kh1 {[%emt 0:03:59]} Rg8 {[%emt 0:00:52]} 25. Rg1 {[%emt 0:00:31]} Qe7 {[%emt 0:00:22]} 26. b4 {[%emt 0:01:56]} a6 {[%emt 0:00:45]} 27. a4 {[%emt 0:01:12]} Rg4 {[%emt 0:08:53]} 28. h3 {[%emt 0:02:49]} Rxg1+ {[%emt 0:02:58]} 29. Rxg1 {[%emt 0:00:02]} Kh7 {[%emt 0:00:30]} 30. Ne2 {[%emt 0:01:14]} Re8 {[%emt 0:01:48]} 31. Nc1 {[%emt 0:03:29]} Rg8 {[%emt 0:01:54]} 32. Ne2 {[%emt 0:03:49]} Rxg1+ {[%emt 0:00:58]} 33. Kxg1 {[%emt 0:00:02]} Nf6 {[%emt 0:01:04]} 34. Ng3 {[%emt 0:00:37]} Qg7 {[%emt 0:01:39]} 35. Kh2 {[%emt 0:00:34]} Qe7 {[%emt 0:00:35]} 36. Qe2 {[%emt 0:00:23]} Qe8 {[%emt 0:01:43]} 37. Ne1 {[%emt 0:02:54]} Bd8 {[%emt 0:02:14]} 38. Nc2 {[%emt 0:01:07]} h5 {[%emt 0:02:28]} 39. Ne1 {[%emt 0:01:16]} h4 {[%emt 0:00:06]} 40. Nf1 {[%emt 0:00:22]} Ne4 {[%emt 0:00:44]} 41. Nf3 {[%emt 0:01:14]} Bf6 {[%emt 0:00:54]} 42. N3d2 {[%emt 0:01:13]} Nc3 {[%emt 0:01:10]} 43. Qd3 {[%emt 0:01:03]} Nxa4 {[%emt 0:01:35]} 44. Qa3 {[%emt 0:00:12]} b5 {[%emt 0:00:01]} 45. cxb6 {[%emt 0:00:06]} Nxb6 {[%emt 0:00:02]} 46. Qxa6 {[%emt 0:00:06]} Bd8 {[%emt 0:01:06]} 47. Nf3 {[%emt 0:01:45]} Nc4 {[%emt 0:00:30]} 48. Qb7+ {[%emt 0:00:59]} Kh6 {[%emt 0:00:17]} 49. Ne5 {[%emt 0:04:13]} Nxe5 {[%emt 0:00:44]} 50. dxe5 {[%emt 0:00:03]} Be7 {[%emt 0:01:12]} 51. Kg2 {[%emt 0:00:57]} Bf8 {[%emt 0:01:12]} 52. Kf2 {[%emt 0:00:40]} Kg6 {[%emt 0:01:47]} 53. Nd2 {[%emt 0:00:12]} Qf7 {[%emt 0:00:22]} 54. Qxc6 {[%emt 0:00:26]} Bxb4 {[%emt 0:00:35]} 55. Nf3 {[%emt 0:00:09]} Be7 {[%emt 0:00:33]} 56. Nd4 {[%emt 0:00:12]} Kh5 {[%emt 0:00:22]} 57. Qxe6 {[%emt 0:00:22]} Qxe6 {[%emt 0:00:26]} 58. Nxe6 {[%emt 0:00:05]} Kg6 {[%emt 0:00:41]} 59. Nc7 {[%emt 0:00:12]} Kf7 {[%emt 0:00:05]} 60. Nxd5 {[%emt 0:00:09]} Bd8 {[%emt 0:00:30]} 61. Kf3 {[%emt 0:00:09]} Ke6 {[%emt 0:00:14]} 62. e4 {[%emt 0:00:09]} 1-0

[Event "Oleksandr Stadnyk Memorial 2020"]
[Site "Chortkiv"]
[Date "2020.12.08"]
[Round "3.3"]
[White "Lozynskyi, Bohdan"]
[Black "Hulka, Valentyn"]
[Result "1/2-1/2"]
[ECO "B20"]
[WhiteElo "2077"]
[BlackElo "1991"]
[Annotator "ChessBase"]
[PlyCount "73"]
[EventDate "2020.12.07"]
[EventType "tourn"]
[EventCountry "UKR"]
[SourceTitle "playchess.com"]
[Source "ChessBase"]
[SourceQuality "1"]
[TimeControl "5400+30"]

1. e4 {[%emt 0:00:00]} c5 {[%emt 0:00:00]} 2. Be2 {[%emt 0:01:12]} Nc6 {[%emt 0:00:00]} 3. f4 {[%emt 0:00:15]} g6 {[%emt 0:00:00]} 4. Nf3 {[%emt 0:00:05]} d5 {[%emt 0:00:05]} 5. d3 {[%emt 0:00:14]} Nf6 {[%emt 0:00:04]} 6. e5 {[%emt 0:00:08]} Nh5 {[%emt 0:00:02]} 7. O-O {[%emt 0:02:13]} Bh6 {[%emt 0:00:04]} 8. g3 {[%emt 0:05:57]} O-O {[%emt 0:01:33]} 9. c3 {[%emt 0:03:23]} d4 {[%emt 0:03:55]} 10. Nbd2 {[%emt 0:03:06]} Ng7 {[%emt 0:00:49]} 11. Ne4 {[%emt 0:01:11]} b6 {[%emt 0:00:10]} 12. Qa4 {[%emt 0:07:26]} Bd7 {[%emt 0:01:32]} 13. Qc2 {[%emt 0:01:23]} Rc8 {[%emt 0:00:28]} 14. Bd2 {[%emt 0:00:36]} f6 {[%emt 0:00:04]} 15. exf6 {[%emt 0:05:48]} exf6 {[%emt 0:02:35]} 16. Rfe1 {[%emt 0:04:33]} dxc3 {[%emt 0:10:07]} 17. bxc3 {[%emt 0:00:12]} Be6 {[%emt 0:02:12]} 18. Bf1 {[%emt 0:05:28]} Re8 {[%emt 0:04:07]} 19. Qb2 {[%emt 0:04:04]} Nf5 {[%emt 0:03:58]} 20. c4 {[%emt 0:02:39]} Bg7 {[%emt 0:03:56]} 21. Bc3 {[%emt 0:00:12]} Ncd4 {[%emt 0:00:05]} 22. Nxd4 {[%emt 0:00:11]} cxd4 {[%emt 0:00:06]} 23. Bd2 {[%emt 0:00:30]} Ne3 {[%emt 0:00:11]} 24. Be2 {[%emt 0:01:41]} Bxc4 {[%emt 0:02:11]} 25. Bxe3 {[%emt 0:01:37]} dxe3 {[%emt 0:04:53]} 26. dxc4 {[%emt 0:00:50]} Rxe4 {[%emt 0:05:49]} 27. Rad1 {[%emt 0:03:47]} Qc7 {[%emt 0:00:30]} 28. Bf3 {[%emt 0:00:42]} Re7 {[%emt 0:00:51]} 29. Kg2 {[%emt 0:04:51]} Kh8 {[%emt 0:00:15]} 30. Bd5 {[%emt 0:00:21]} f5 {[%emt 0:00:08]} 31. Qa3 {[%emt 0:00:48]} Rce8 {[%emt 0:02:52]} 32. Re2 {[%emt 0:03:26]} Qc5 {[%emt 0:14:07]} 33. Qb3 {[%emt 0:02:07]} h6 {[%emt 0:04:16]} 34. h4 {[%emt 0:03:16]} h5 {[%emt 0:00:09]} 35. Kf3 {[%emt 0:00:16]} Bf6 36. Rd3 Kg7 37. Rd1 1/2-1/2

[Event "Oleksandr Stadnyk Memorial 2020"]
[Site "Chortkiv"]
[Date "2020.12.08"]
[Round "4.1"]
[White "Polishchuk, Oleg"]
[Black "Hulka, Valentyn"]
[Result "1-0"]
[ECO "A21"]
[WhiteElo "2155"]
[BlackElo "1991"]
[Annotator "NA"]
[PlyCount "77"]
[EventDate "2020.12.07"]
[EventType "tourn"]
[EventCountry "UKR"]
[SourceTitle "playchess.com"]
[Source "ChessBase"]
[SourceQuality "1"]
[TimeControl "5400+30"]

1. c4 {[%emt 0:00:00]} e5 {[%emt 0:00:00]} 2. Nc3 {[%emt 0:00:00]} d6 {[%emt 0:00:00]} 3. Nf3 {[%emt 0:00:00]} f5 {[%emt 0:00:00]} 4. d4 {[%emt 0:00:00]} e4 {[%emt 0:00:00]} 5. Nd2 {[%emt 0:00:50]} c6 {[%emt 0:01:45]} 6. e3 {[%emt 0:00:06]} Nf6 {[%emt 0:00:11]} 7. Be2 {[%emt 0:00:37]} Be7 {[%emt 0:00:09]} 8. O-O {[%emt 0:00:08]} O-O {[%emt 0:00:03]} 9. b4 d5 10. Qb3 {[%emt 0:01:53]} Be6 {[%emt 0:04:20]} 11. a4 g5 12. b5 {[%emt 0:01:10]} Nbd7 {[%emt 0:10:13]} 13. a5 {[%emt 0:01:37]} c5 {[%emt 0:01:55]} 14. cxd5 {[%emt 0:02:08]} Bf7 15. Bc4 {[%emt 0:13:45]} cxd4 {[%emt 0:01:20]} 16. exd4 {[%emt 0:00:00]} Bd6 {[%emt 0:01:34]} 17. Ba3 Qe7 18. Rfe1 {[%emt 0:05:16]} Rfe8 {[%emt 0:06:54]} 19. Nd1 Bxa3 {[%emt 0:03:18]} 20. Rxa3 {[%emt 0:13:55]} Qd6 {[%emt 0:00:31]} 21. Ne3 {[%emt 0:01:00]} Bg6 {[%emt 0:00:28]} 22. Be2 {[%emt 0:02:16]} f4 {[%emt 0:01:36]} 23. Ndc4 {[%emt 0:01:13]} Qf8 {[%emt 0:00:50]} 24. Ng4 {[%emt 0:00:37]} f3 {[%emt 0:04:58]} 25. gxf3 {[%emt 0:02:09]} exf3 {[%emt 0:00:20]} 26. Qxf3 {[%emt 0:00:15]} Nxg4 {[%emt 0:00:17]} 27. Qxg4 {[%emt 0:00:18]} Qb4 28. Kf1 {[%emt 0:06:42]} Nf6 {[%emt 0:02:16]} 29. Qxg5 {[%emt 0:02:38]} Ne4 {[%emt 0:09:00]} 30. Qe3 {[%emt 0:11:43]} Nxf2 {[%emt 0:00:46]} 31. Ne5 {[%emt 0:01:57]} Rf8 {[%emt 0:00:20]} 32. Bf3 {[%emt 0:01:16]} Nh3 {[%emt 0:03:07]} 33. Nxg6 {[%emt 0:00:56]} hxg6 {[%emt 0:00:28]} 34. Qe6+ {[%emt 0:03:28]} Rf7 {[%emt 0:00:19]} 35. Qxg6+ {[%emt 0:00:49]} Rg7 {[%emt 0:00:44]} 36. Re8+ {[%emt 0:00:22]} Rxe8 {[%emt 0:00:01]} 37. Qxe8+ {[%emt 0:00:11]} Kh7 {[%emt 0:00:01]} 38. Be4+ {[%emt 0:00:14]} Kh6 {[%emt 0:00:17]} 39. Rxh3+ {[%emt 0:00:10]} 1-0

[Event "Oleksandr Stadnyk Memorial 2020"]
[Site "Chortkiv"]
[Date "2020.12.08"]
[Round "4.2"]
[White "Vakulenko, Oleksandr"]
[Black "Lozynskyi, Bohdan"]
[Result "1-0"]
[ECO "D35"]
[WhiteElo "2245"]
[BlackElo "2077"]
[Annotator "NA"]
[PlyCount "79"]
[EventDate "2020.12.07"]
[EventType "tourn"]
[EventCountry "UKR"]
[SourceTitle "playchess.com"]
[Source "ChessBase"]
[SourceQuality "1"]
[TimeControl "5400+30"]

1. d4 {[%emt 0:00:00]} d5 {[%emt 0:00:19]} 2. c4 {[%emt 0:00:00]} e6 {[%emt 0:00:08]} 3. Nc3 {[%emt 0:00:00]} Nf6 {[%emt 0:00:09]} 4. cxd5 {[%emt 0:00:08]} exd5 {[%emt 0:00:08]} 5. Bg5 {[%emt 0:00:11]} Nbd7 {[%emt 0:01:17]} 6. e3 {[%emt 0:00:22]} c6 {[%emt 0:00:12]} 7. Bd3 {[%emt 0:00:26]} Be7 {[%emt 0:00:14]} 8. Qc2 {[%emt 0:00:29]} O-O {[%emt 0:00:20]} 9. Nf3 {[%emt 0:00:28]} Re8 {[%emt 0:01:43]} 10. O-O {[%emt 0:01:29]} h6 {[%emt 0:01:34]} 11. Bf4 {[%emt 0:00:58]} Nh5 {[%emt 0:03:13]} 12. Nxd5 {[%emt 0:00:30]} Nxf4 {[%emt 0:00:15]} 13. Nxf4 {[%emt 0:00:25]} Nf6 {[%emt 0:02:38]} 14. h3 {[%emt 0:15:39]} Nd5 {[%emt 0:05:22]} 15. Nxd5 {[%emt 0:09:20]} cxd5 {[%emt 0:00:09]} 16. Bh7+ {[%emt 0:02:37]} Kf8 {[%emt 0:07:19]} 17. Bf5 {[%emt 0:00:36]} Bd6 {[%emt 0:05:33]} 18. Bxc8 {[%emt 0:08:25]} Rxc8 {[%emt 0:00:29]} 19. Qh7 {[%emt 0:00:45]} Qf6 {[%emt 0:00:59]} 20. Rac1 {[%emt 0:00:32]} Rcd8 {[%emt 0:04:29]} 21. Rc3 {[%emt 0:06:23]} Re6 {[%emt 0:06:40]} 22. Rc8 {[%emt 0:02:47]} Ree8 {[%emt 0:05:23]} 23. Rfc1 {[%emt 0:03:45]} g5 {[%emt 0:04:41]} 24. Rxd8 {[%emt 0:07:16]} Rxd8 {[%emt 0:00:05]} 25. Ne5 {[%emt 0:00:43]} Bxe5 {[%emt 0:01:24]} 26. dxe5 {[%emt 0:00:02]} Qxe5 {[%emt 0:00:16]} 27. Qxh6+ {[%emt 0:00:21]} Ke7 {[%emt 0:00:58]} 28. Rd1 {[%emt 0:07:15]} Rd6 {[%emt 0:05:37]} 29. Qh5 {[%emt 0:01:34]} Qxb2 {[%emt 0:02:39]} 30. Qxg5+ {[%emt 0:00:22]} Rf6 {[%emt 0:00:10]} 31. Qxd5 {[%emt 0:10:09]} Qxf2+ {[%emt 0:00:15]} 32. Kh2 {[%emt 0:00:21]} Kf8 {[%emt 0:00:54]} 33. Qc5+ {[%emt 0:00:23]} Kg7 {[%emt 0:00:44]} 34. Rd8 {[%emt 0:00:37]} Rg6 {[%emt 0:02:38]} 35. Qf8+ {[%emt 0:01:33]} Kf6 {[%emt 0:00:07]} 36. Rd6+ {[%emt 0:02:44]} Kg5 {[%emt 0:00:36]} 37. Rd4 {[%emt 0:01:16]} Qxe3 {[%emt 0:03:42]} 38. Qc5+ {[%emt 0:00:32]} Kf6 {[%emt 0:00:05]} 39. Rd6+ {[%emt 0:00:14]} Qe6 {[%emt 0:00:04]} 40. Rxe6+ {[%emt 0:00:12]} 1-0

[Event "Oleksandr Stadnyk Memorial 2020"]
[Site "Chortkiv"]
[Date "2020.12.08"]
[Round "4.3"]
[White "Medvedyk, Volodymyr"]
[Black "Yaniuk, Volodymyr"]
[Result "0-1"]
[ECO "E04"]
[WhiteElo "2205"]
[BlackElo "2233"]
[Annotator "NA"]
[PlyCount "76"]
[EventDate "2020.12.07"]
[EventType "tourn"]
[EventCountry "UKR"]
[SourceTitle "playchess.com"]
[Source "ChessBase"]
[SourceQuality "1"]
[TimeControl "5400+30"]

1. Nf3 {[%emt 0:03:06]} d5 {[%emt 0:00:00]} 2. d4 {[%emt 0:00:36]} Nf6 {[%emt 0:00:00]} 3. c4 {[%emt 0:00:10]} e6 {[%emt 0:00:00]} 4. g3 {[%emt 0:00:14]} dxc4 {[%emt 0:00:11]} 5. Bg2 {[%emt 0:00:28]} Bd7 {[%emt 0:00:08]} 6. Ne5 {[%emt 0:00:56]} Bc6 {[%emt 0:00:02]} 7. Nxc6 {[%emt 0:00:17]} Nxc6 {[%emt 0:00:01]} 8. O-O {[%emt 0:00:57]} Qd7 {[%emt 0:00:05]} 9. e3 {[%emt 0:01:21]} O-O-O {[%emt 0:00:14]} 10. Nd2 {[%emt 0:01:06]} h5 {[%emt 0:01:41]} 11. Nxc4 {[%emt 0:01:08]} Nd5 {[%emt 0:00:11]} 12. b4 {[%emt 0:12:46]} Bxb4 {[%emt 0:06:16]} 13. a3 {[%emt 0:03:22]} Bd6 {[%emt 0:02:15]} 14. Qb3 {[%emt 0:02:26]} h4 {[%emt 0:09:33]} 15. Rb1 {[%emt 0:04:17]} b6 {[%emt 0:00:51]} 16. Bd2 {[%emt 0:09:07]} hxg3 {[%emt 0:00:20]} 17. hxg3 {[%emt 0:08:02]} f5 {[%emt 0:11:21]} 18. Rfc1 {[%emt 0:02:54]} Nce7 {[%emt 0:12:22]} 19. a4 {[%emt 0:07:24]} Rdf8 {[%emt 0:02:37]} 20. e4 {[%emt 0:18:52]} fxe4 {[%emt 0:00:47]} 21. Bxe4 {[%emt 0:01:13]} Nf5 {[%emt 0:05:08]} 22. Bxd5 exd5 {[%emt 0:01:13]} 23. Nxb6+ {[%emt 0:14:12]} axb6 {[%emt 0:01:27]} 24. Qxd5 {[%emt 0:00:49]} Kd8 {[%emt 0:03:41]} 25. Bg5+ {[%emt 0:06:04]} Ke8 {[%emt 0:10:38]} 26. Re1+ {[%emt 0:00:33]} Ne7 {[%emt 0:00:39]} 27. Rb2 {[%emt 0:00:38]} Qh3 {[%emt 0:03:26]} 28. Qc6+ {[%emt 0:00:30]} Kf7 {[%emt 0:00:32]} 29. Qc4+ {[%emt 0:00:29]} Kg6 {[%emt 0:01:39]} 30. Re6+ {[%emt 0:00:26]} Rf6 {[%emt 0:00:33]} 31. Qd3+ {[%emt 0:00:35]} Kf7 {[%emt 0:00:14]} 32. Rxf6+ {[%emt 0:00:27]} gxf6 {[%emt 0:00:14]} 33. Qb3+ {[%emt 0:00:31]} Kg7 {[%emt 0:00:42]} 34. Bh4 {[%emt 0:00:22]} Ng6 {[%emt 0:01:14]} 35. Qd5 {[%emt 0:00:40]} Nxh4 {[%emt 0:00:47]} 36. gxh4 {[%emt 0:00:08]} Qg4+ {[%emt 0:01:12]} 37. Kf1 {[%emt 0:00:34]} Qd1+ {[%emt 0:00:13]} 38. Kg2 {[%emt 0:00:01]} Rxh4 {[%emt 0:00:13]} 0-1

[Event "Oleksandr Stadnyk Memorial 2020"]
[Site "Chortkiv"]
[Date "2020.12.09"]
[Round "5.1"]
[White "Yaniuk, Volodymyr"]
[Black "Polishchuk, Oleg"]
[Result "1-0"]
[ECO "D30"]
[WhiteElo "2233"]
[BlackElo "2155"]
[Annotator "ChessBase"]
[PlyCount "99"]
[EventDate "2020.12.07"]
[EventType "tourn"]
[EventCountry "UKR"]
[SourceTitle "playchess.com"]
[Source "ChessBase"]
[SourceQuality "1"]
[TimeControl "5400+30"]

1. d4 {[%emt 0:00:00]} d5 {[%emt 0:00:00]} 2. c4 {[%emt 0:00:00]} e6 {[%emt 0:00:00]} 3. Nf3 {[%emt 0:00:00]} c6 {[%emt 0:00:05]} 4. e3 {[%emt 0:00:00]} f5 {[%emt 0:00:06]} 5. Bd3 {[%emt 0:00:00]} Nf6 {[%emt 0:00:16]} 6. O-O {[%emt 0:00:00]} Bd6 {[%emt 0:00:05]} 7. b3 {[%emt 0:00:00]} O-O {[%emt 0:00:12]} 8. Ba3 {[%emt 0:00:06]} Bxa3 {[%emt 0:00:12]} 9. Nxa3 {[%emt 0:00:02]} Ne4 {[%emt 0:00:24]} 10. Qc2 {[%emt 0:00:19]} Nd7 {[%emt 0:00:15]} 11. Nb1 {[%emt 0:01:04]} Qf6 {[%emt 0:02:11]} 12. Nc3 {[%emt 0:00:26]} g5 {[%emt 0:03:21]} 13. Ne2 {[%emt 0:03:37]} g4 {[%emt 0:02:06]} 14. Nd2 {[%emt 0:01:04]} Qh6 {[%emt 0:00:46]} 15. Nf4 {[%emt 0:00:51]} Ndf6 {[%emt 0:01:13]} 16. f3 {[%emt 0:02:09]} Ng5 {[%emt 0:07:15]} 17. Be2 {[%emt 0:04:59]} gxf3 {[%emt 0:00:55]} 18. gxf3 {[%emt 0:00:13]} Bd7 {[%emt 0:00:19]} 19. Kh1 {[%emt 0:01:09]} Kh8 {[%emt 0:00:22]} 20. Rg1 {[%emt 0:01:08]} Rg8 {[%emt 0:00:26]} 21. Rg3 {[%emt 0:04:35]} Nh5 {[%emt 0:07:26]} 22. Nxh5 {[%emt 0:06:24]} Qxh5 {[%emt 0:00:03]} 23. f4 {[%emt 0:04:14]} Qxe2 {[%emt 0:00:11]} 24. fxg5 {[%emt 0:00:02]} dxc4 {[%emt 0:03:01]} 25. bxc4 {[%emt 0:00:35]} c5 {[%emt 0:00:18]} 26. d5 {[%emt 0:01:29]} exd5 {[%emt 0:03:00]} 27. cxd5 {[%emt 0:00:47]} b5 {[%emt 0:07:17]} 28. Qc3+ {[%emt 0:03:15]} Rg7 {[%emt 0:00:02]} 29. Rg2 {[%emt 0:00:17]} Qh5 {[%emt 0:00:27]} 30. Qxc5 {[%emt 0:00:17]} Rc8 {[%emt 0:03:35]} 31. Qd4 {[%emt 0:00:17]} a5 {[%emt 0:01:06]} 32. Rf1 {[%emt 0:04:15]} Kg8 {[%emt 0:02:41]} 33. Qf4 {[%emt 0:01:35]} Qf7 {[%emt 0:02:45]} 34. e4 {[%emt 0:01:05]} b4 {[%emt 0:05:10]} 35. Qe5 {[%emt 0:03:07]} Re8 {[%emt 0:06:52]} 36. Qd4 {[%emt 0:00:53]} f4 {[%emt 0:03:47]} 37. Rf3 {[%emt 0:00:58]} Rc8 {[%emt 0:00:46]} 38. h3 {[%emt 0:04:46]} Qh5 {[%emt 0:02:38]} 39. Kh2 Rxg5 {[%emt 0:01:16]} 40. Rxg5+ {[%emt 0:02:06]} Qxg5 {[%emt 0:00:02]} 41. e5 {[%emt 0:00:50]} Rc2 {[%emt 0:03:44]} 42. e6 {[%emt 0:00:33]} Bc8 {[%emt 0:02:34]} 43. Rxf4 {[%emt 0:00:18]} h5 {[%emt 0:01:11]} 44. Rf2 {[%emt 0:01:59]} Rxa2 {[%emt 0:04:38]} 45. Rg2 {[%emt 0:00:26]} Qxg2+ {[%emt 0:00:13]} 46. Kxg2 {[%emt 0:00:01]} b3 {[%emt 0:00:02]} 47. Kg3 {[%emt 0:00:28]} a4 {[%emt 0:00:01]} 48. Kh4 {[%emt 0:01:10]} Rc2 {[%emt 0:00:02]} 49. Kg5 {[%emt 0:01:17]} b2 {[%emt 0:00:02]} 50. Kh6 {[%emt 0:00:25]} 1-0

[Event "Oleksandr Stadnyk Memorial 2020"]
[Site "Chortkiv"]
[Date "2020.12.09"]
[Round "5.2"]
[White "Lozynskyi, Bohdan"]
[Black "Medvedyk, Volodymyr"]
[Result "1/2-1/2"]
[ECO "C54"]
[WhiteElo "2077"]
[BlackElo "2205"]
[Annotator "ChessBase"]
[PlyCount "105"]
[EventDate "2020.12.07"]
[EventType "tourn"]
[EventCountry "UKR"]
[SourceTitle "playchess.com"]
[Source "ChessBase"]
[SourceQuality "1"]
[TimeControl "5400+30"]

1. e4 {[%emt 0:00:00]} e5 {[%emt 0:03:56]} 2. Nf3 {[%emt 0:00:00]} Nc6 {[%emt 0:00:02]} 3. Bc4 {[%emt 0:00:00]} Bc5 {[%emt 0:00:28]} 4. c3 {[%emt 0:00:00]} Nf6 {[%emt 0:00:02]} 5. d4 {[%emt 0:00:02]} exd4 {[%emt 0:00:02]} 6. e5 {[%emt 0:00:06]} d5 {[%emt 0:00:08]} 7. Bb5 {[%emt 0:00:05]} Ne4 {[%emt 0:00:03]} 8. cxd4 {[%emt 0:00:07]} Bb6 {[%emt 0:00:03]} 9. Nc3 {[%emt 0:00:08]} O-O {[%emt 0:01:24]} 10. Be3 {[%emt 0:00:08]} Bg4 {[%emt 0:00:12]} 11. h3 {[%emt 0:00:08]} Bh5 {[%emt 0:00:11]} 12. Qc2 {[%emt 0:00:06]} Bg6 {[%emt 0:00:43]} 13. Qb3 {[%emt 0:00:07]} Ne7 {[%emt 0:00:30]} 14. O-O {[%emt 0:00:14]} c6 {[%emt 0:00:24]} 15. Bd3 {[%emt 0:00:09]} Qd7 {[%emt 0:02:33]} 16. Rad1 {[%emt 0:07:05]} Nxc3 {[%emt 0:08:50]} 17. Qxc3 {[%emt 0:02:14]} Bh5 {[%emt 0:27:26]} 18. Be2 {[%emt 0:07:48]} Bc7 {[%emt 0:09:57]} 19. Rfe1 {[%emt 0:06:21]} a5 {[%emt 0:16:31]} 20. b3 {[%emt 0:04:58]} Bd8 {[%emt 0:07:01]} 21. Bf4 {[%emt 0:04:46]} Ng6 {[%emt 0:01:32]} 22. Bh2 {[%emt 0:01:29]} Nh4 {[%emt 0:06:25]} 23. Nxh4 {[%emt 0:03:39]} Bxe2 {[%emt 0:00:05]} 24. Rxe2 {[%emt 0:00:06]} Bxh4 {[%emt 0:00:01]} 25. f4 {[%emt 0:00:16]} f5 {[%emt 0:01:18]} 26. Qf3 {[%emt 0:03:27]} Qe6 {[%emt 0:05:19]} 27. g4 {[%emt 0:00:47]} Be7 {[%emt 0:02:08]} 28. a4 {[%emt 0:03:05]} Kh8 {[%emt 0:05:45]} 29. Kg2 {[%emt 0:04:40]} g5 {[%emt 0:00:56]} 30. fxg5 {[%emt 0:01:18]} Bxg5 {[%emt 0:00:31]} 31. Rf1 {[%emt 0:01:38]} fxg4 {[%emt 0:00:32]} 32. Qxf8+ {[%emt 0:10:39]} Rxf8 {[%emt 0:00:01]} 33. Rxf8+ {[%emt 0:00:02]} Kg7 {[%emt 0:00:03]} 34. Ref2 {[%emt 0:12:25]} gxh3+ {[%emt 0:00:22]} 35. Kh1 {[%emt 0:00:25]} Qg6 {[%emt 0:01:35]} 36. e6 {[%emt 0:00:19]} Qb1+ {[%emt 0:00:29]} 37. Rf1 {[%emt 0:00:36]} Qe4+ {[%emt 0:00:24]} 38. R1f3 {[%emt 0:00:18]} Qe1+ {[%emt 0:00:36]} 39. Rf1 {[%emt 0:00:08]} Qxe6 {[%emt 0:00:28]} 40. Be5+ {[%emt 0:00:06]} Kg6 {[%emt 0:00:16]} 41. Kh2 {[%emt 0:00:36]} h6 {[%emt 0:00:47]} 42. R1f3 {[%emt 0:00:34]} c5 {[%emt 0:00:29]} 43. Kg3 {[%emt 0:05:00]} cxd4 {[%emt 0:00:17]} 44. Bxd4 {[%emt 0:00:05]} h5 {[%emt 0:00:42]} 45. Kh2 {[%emt 0:00:27]} Qg4 {[%emt 0:00:32]} 46. Rg8+ {[%emt 0:00:19]} Kh7 {[%emt 0:00:30]} 47. Rh8+ {[%emt 0:02:13]} Kg6 {[%emt 0:00:01]} 48. Rg8+ {[%emt 0:00:14]} Kh7 {[%emt 0:00:12]} 49. Rgf8 Kg6 50. Rg3 Qe2+ 51. Rf2 Qg4 52. Rf8 Qe6 53. Rgf3 1/2-1/2

[Event "Oleksandr Stadnyk Memorial 2020"]
[Site "Chortkiv"]
[Date "2020.12.09"]
[Round "5.3"]
[White "Hulka, Valentyn"]
[Black "Vakulenko, Oleksandr"]
[Result "1-0"]
[ECO "C91"]
[WhiteElo "1991"]
[BlackElo "2245"]
[Annotator "ChessBase"]
[PlyCount "89"]
[EventDate "2020.12.07"]
[EventType "tourn"]
[EventCountry "UKR"]
[SourceTitle "playchess.com"]
[Source "ChessBase"]
[SourceQuality "1"]
[TimeControl "5400+30"]

1. e4 {[%emt 0:00:00]} e5 {[%emt 0:00:00]} 2. Nf3 {[%emt 0:00:03]} Nc6 {[%emt 0:00:10]} 3. Bb5 {[%emt 0:00:26]} a6 {[%emt 0:00:23]} 4. Ba4 {[%emt 0:00:28]} Nf6 {[%emt 0:00:20]} 5. O-O {[%emt 0:00:19]} Be7 {[%emt 0:00:23]} 6. Re1 {[%emt 0:00:36]} b5 {[%emt 0:00:26]} 7. Bb3 {[%emt 0:00:08]} d6 {[%emt 0:00:23]} 8. c3 {[%emt 0:00:50]} O-O {[%emt 0:00:34]} 9. d4 {[%emt 0:01:13]} Bg4 {[%emt 0:03:30]} 10. Be3 {[%emt 0:02:11]} exd4 {[%emt 0:01:39]} 11. cxd4 {[%emt 0:00:08]} d5 {[%emt 0:00:33]} 12. e5 {[%emt 0:00:08]} Ne4 {[%emt 0:00:23]} 13. h3 {[%emt 0:00:48]} Be6 {[%emt 0:00:40]} 14. Nbd2 {[%emt 0:09:14]} Na5 {[%emt 0:06:11]} 15. Bc2 {[%emt 0:02:19]} Nxd2 {[%emt 0:01:40]} 16. Qxd2 {[%emt 0:05:02]} Nc4 {[%emt 0:03:08]} 17. Qd3 {[%emt 0:01:16]} g6 {[%emt 0:00:31]} 18. Bh6 {[%emt 0:01:03]} Re8 {[%emt 0:09:33]} 19. b3 {[%emt 0:13:14]} Na3 {[%emt 0:04:40]} 20. Qe2 {[%emt 0:09:44]} Nxc2 {[%emt 0:11:51]} 21. Qxc2 {[%emt 0:00:07]} Qd7 {[%emt 0:00:29]} 22. Qd2 {[%emt 0:04:36]} a5 {[%emt 0:14:42]} 23. Qf4 {[%emt 0:12:58]} a4 {[%emt 0:02:56]} 24. Bg5 {[%emt 0:03:01]} axb3 {[%emt 0:11:47]} 25. Bxe7 {[%emt 0:00:42]} Qxe7 {[%emt 0:00:26]} 26. axb3 {[%emt 0:00:07]} Bf5 {[%emt 0:00:59]} 27. g4 {[%emt 0:07:53]} Bc2 {[%emt 0:02:41]} 28. Qe3 {[%emt 0:03:44]} Ra3 {[%emt 0:03:28]} 29. Qc3 {[%emt 0:03:03]} Rxb3 {[%emt 0:03:15]} 30. Qxc2 {[%emt 0:01:08]} Rxf3 {[%emt 0:00:02]} 31. Kg2 {[%emt 0:00:10]} Rf4 {[%emt 0:00:34]} 32. Qd2 {[%emt 0:04:54]} g5 {[%emt 0:00:50]} 33. Ra7 {[%emt 0:01:16]} Rd8 {[%emt 0:05:51]} 34. Rc1 {[%emt 0:00:23]} Rd7 {[%emt 0:00:08]} 35. Rc6 {[%emt 0:00:42]} b4 {[%emt 0:02:13]} 36. Rb7 {[%emt 0:00:11]} h6 {[%emt 0:04:28]} 37. f3 {[%emt 0:00:30]} Qf8 {[%emt 0:02:31]} 38. Qd3 {[%emt 0:00:38]} Qa8 {[%emt 0:02:26]} 39. e6 {[%emt 0:03:47]} Re7 {[%emt 0:00:24]} 40. Rbxc7 {[%emt 0:00:18]} Rxc7 {[%emt 0:01:00]} 41. Rxc7 {[%emt 0:00:01]} Qa2+ {[%emt 0:01:12]} 42. Kg3 {[%emt 0:00:12]} Kg7 {[%emt 0:00:10]} 43. e7 {[%emt 0:00:43]} Qa1 {[%emt 0:00:43]} 44. Qe3 {[%emt 0:00:15]} Qf1 {[%emt 0:01:16]} 45. e8=Q {[%emt 0:00:42]} 1-0